[Event "*** SCC Grand Prix: Titled Tuesday Blitz"]
[Site "Chess.com"]
[Date "2020.06.09"]
[Round "2"]
[White "topotun"]
[Black "Paralinch"]
[Result "1-0"]
[WhiteElo "2612"]
[BlackElo "2856"]
[TimeControl "180+1"]
[EndTime "9:19:09 PDT"]
[Termination "topotun won by resignation"]

1. e4 {[%clk 0:03:00.9]} 1... c5 {[%clk 0:03:00.1]} 2. Nf3 {[%clk 0:03:00.6]}
2... e6 {[%clk 0:03:00.6]} 3. d4 {[%clk 0:03:01.1]} 3... cxd4 {[%clk 0:03:01.5]}
4. Nxd4 {[%clk 0:03:02]} 4... Nf6 {[%clk 0:03:02]} 5. Nc3 {[%clk 0:03:02.2]}
5... Nc6 {[%clk 0:03:02.6]} 6. a3 {[%clk 0:02:59.9]} 6... e5 {[%clk 0:03:01.8]}
7. Nf5 {[%clk 0:02:13.2]} 7... d5 {[%clk 0:02:59.1]} 8. exd5 {[%clk 0:02:13.6]}
8... Bxf5 {[%clk 0:02:56.9]} 9. dxc6 {[%clk 0:02:13.4]} 9... bxc6 {[%clk
0:02:49.9]} 10. Qxd8+ {[%clk 0:01:59.2]} 10... Rxd8 {[%clk 0:02:50.8]} 11. Be3
{[%clk 0:01:59.5]} 11... Rd7 {[%clk 0:02:39.5]} 12. Bd3 {[%clk 0:01:45.7]} 12...
Bxd3 {[%clk 0:02:17.6]} 13. cxd3 {[%clk 0:01:46.6]} 13... Be7 {[%clk 0:02:18.4]}
14. Ke2 {[%clk 0:01:46.2]} 14... O-O {[%clk 0:02:16.3]} 15. Rac1 {[%clk
0:01:46.1]} 15... Rb8 {[%clk 0:02:13.3]} 16. Na4 {[%clk 0:01:38]} 16... Rc7
{[%clk 0:02:01.7]} 17. Rc4 {[%clk 0:01:30.2]} 17... Nd5 {[%clk 0:01:54.8]} 18.
Rhc1 {[%clk 0:01:28.9]} 18... Rbc8 {[%clk 0:01:55.4]} 19. Nc5 {[%clk 0:01:25]}
19... Bxc5 {[%clk 0:01:34.2]} 20. Rxc5 {[%clk 0:01:25]} 20... Kf8 {[%clk
0:01:23.3]} 21. b4 {[%clk 0:01:18.2]} 21... Ke7 {[%clk 0:01:23.6]} 22. Ra5
{[%clk 0:01:18.1]} 22... Kd7 {[%clk 0:01:11.1]} 23. Bxa7 {[%clk 0:00:59.7]}
23... Ra8 {[%clk 0:01:03.2]} 24. Bc5 {[%clk 0:00:59.2]} 24... Re8 {[%clk
0:00:39.7]} 25. g3 {[%clk 0:00:56.6]} 25... f5 {[%clk 0:00:39.9]} 26. Kd2 {[%clk
0:00:51]} 26... e4 {[%clk 0:00:39.6]} 27. Re1 {[%clk 0:00:49.4]} 27... g5 {[%clk
0:00:34.1]} 28. Bd4 {[%clk 0:00:38.9]} 28... Rb7 {[%clk 0:00:27.4]} 29. dxe4
{[%clk 0:00:35.1]} 29... fxe4 {[%clk 0:00:25.2]} 30. Ra6 {[%clk 0:00:33.2]}
30... h5 {[%clk 0:00:24.7]} 31. h3 {[%clk 0:00:32.6]} 31... h4 {[%clk
0:00:23.6]} 32. Rg1 {[%clk 0:00:29.5]} 32... Re7 {[%clk 0:00:19]} 33. gxh4
{[%clk 0:00:29.2]} 33... gxh4 {[%clk 0:00:19.9]} 34. Rg4 {[%clk 0:00:29.6]}
34... Nc7 {[%clk 0:00:14.8]} 35. Ra5 {[%clk 0:00:21.4]} 35... Nb5 {[%clk
0:00:14.8]} 36. Bc5 {[%clk 0:00:21.6]} 36... Rf7 {[%clk 0:00:15]} 37. Rxe4
{[%clk 0:00:20.3]} 37... Kc8 {[%clk 0:00:14.6]} 38. Rxh4 {[%clk 0:00:20.2]}
38... Rbd7+ {[%clk 0:00:14.8]} 39. Ke1 {[%clk 0:00:17.2]} 39... Kb7 {[%clk
0:00:14.4]} 40. Be3 {[%clk 0:00:14.9]} 40... Rde7 {[%clk 0:00:12]} 41. a4 {[%clk
0:00:14.4]} 41... Nc3 {[%clk 0:00:12]} 42. Ra7+ {[%clk 0:00:14.6]} 42... Kc8
{[%clk 0:00:11.1]} 43. Rxe7 {[%clk 0:00:15.5]} 43... Rxe7 {[%clk 0:00:11.2]} 44.
Rc4 {[%clk 0:00:15.4]} 44... Nxa4 {[%clk 0:00:11.1]} 45. Rxc6+ {[%clk
0:00:15.3]} 45... Kd7 {[%clk 0:00:12]} 46. Ra6 {[%clk 0:00:14.6]} 46... Nc3
{[%clk 0:00:12.3]} 47. Ra7+ {[%clk 0:00:14.5]} 47... Ke6 {[%clk 0:00:12.9]} 48.
Rxe7+ {[%clk 0:00:15.1]} 48... Kxe7 {[%clk 0:00:13.8]} 49. Kd2 {[%clk
0:00:14.7]} 49... Nd5 {[%clk 0:00:13.8]} 50. b5 {[%clk 0:00:14.7]} 50... Kd6
{[%clk 0:00:14.3]} 51. h4 {[%clk 0:00:14.2]} 51... Nf6 {[%clk 0:00:14.5]} 52.
Bd4 {[%clk 0:00:13.2]} 52... Ng4 {[%clk 0:00:13.8]} 53. h5 {[%clk 0:00:11.9]}
53... Kd5 {[%clk 0:00:14.3]} 54. b6 {[%clk 0:00:12]} 54... Kc6 {[%clk
0:00:12.8]} 55. f3 {[%clk 0:00:11.6]} 55... Nh6 {[%clk 0:00:12.9]} 56. Kd3
{[%clk 0:00:12]} 56... Nf5 {[%clk 0:00:13.8]} 57. Be3 {[%clk 0:00:12.1]} 57...
Kb7 {[%clk 0:00:13.5]} 58. h6 {[%clk 0:00:12.1]} 1-0

[Event "*** SCC Grand Prix: Titled Tuesday Blitz"]
[Site "Chess.com"]
[Date "2020.06.09"]
[Round "2"]
[White "snap_man"]
[Black "sasko1234"]
[Result "1/2-1/2"]
[WhiteElo "2297"]
[BlackElo "2475"]
[TimeControl "180+1"]
[EndTime "9:19:09 PDT"]
[Termination "Game drawn by repetition"]

1. e4 {[%clk 0:03:00.9]} 1... d6 {[%clk 0:02:59.6]} 2. d4 {[%clk 0:03:00.3]}
2... Nf6 {[%clk 0:02:59.9]} 3. Nc3 {[%clk 0:03:00.4]} 3... c6 {[%clk 0:02:59.5]}
4. f4 {[%clk 0:03:00.5]} 4... Qa5 {[%clk 0:02:58.4]} 5. Bd3 {[%clk 0:02:59.8]}
5... e5 {[%clk 0:02:57.7]} 6. Nf3 {[%clk 0:02:53.6]} 6... Bg4 {[%clk 0:02:54.5]}
7. Be3 {[%clk 0:02:31.2]} 7... Nbd7 {[%clk 0:02:51.1]} 8. h3 {[%clk 0:02:29.9]}
8... Bh5 {[%clk 0:02:35]} 9. g4 {[%clk 0:02:29.3]} 9... exf4 {[%clk 0:02:34.6]}
10. Bxf4 {[%clk 0:02:24.9]} 10... Bg6 {[%clk 0:02:34.3]} 11. Qe2 {[%clk
0:01:36.3]} 11... O-O-O {[%clk 0:02:19.4]} 12. O-O-O {[%clk 0:01:35.7]} 12... d5
{[%clk 0:01:30.7]} 13. exd5 {[%clk 0:01:17.3]} 13... Nxd5 {[%clk 0:01:26]} 14.
Nxd5 {[%clk 0:01:17.2]} 14... Qxd5 {[%clk 0:01:09.1]} 15. c4 {[%clk 0:01:16.5]}
15... Qa5 {[%clk 0:01:02.1]} 16. Kb1 {[%clk 0:01:16.2]} 16... Bxd3+ {[%clk
0:00:58.7]} 17. Qxd3 {[%clk 0:01:16]} 17... h6 {[%clk 0:00:58]} 18. Ne5 {[%clk
0:00:30.4]} 18... Nxe5 {[%clk 0:00:56.6]} 19. Qf5+ {[%clk 0:00:30.5]} 19... Rd7
{[%clk 0:00:51.5]} 20. dxe5 {[%clk 0:00:30.8]} 20... Qd8 {[%clk 0:00:44.6]} 21.
Kc2 {[%clk 0:00:15.8]} 21... g6 {[%clk 0:00:44.3]} 22. Qf6 {[%clk 0:00:14.1]}
22... Qxf6 {[%clk 0:00:41.6]} 23. exf6 {[%clk 0:00:14.1]} 23... Rxd1 {[%clk
0:00:36.1]} 24. Rxd1 {[%clk 0:00:13.6]} 24... h5 {[%clk 0:00:36.1]} 25. g5
{[%clk 0:00:11.2]} 25... Bc5 {[%clk 0:00:32.6]} 26. Re1 {[%clk 0:00:11.4]} 26...
Kd7 {[%clk 0:00:29.1]} 27. a3 {[%clk 0:00:10.6]} 27... Re8 {[%clk 0:00:27.4]}
28. Rd1+ {[%clk 0:00:10.6]} 28... Kc8 {[%clk 0:00:26.8]} 29. b4 {[%clk
0:00:10.4]} 29... Bb6 {[%clk 0:00:22.9]} 30. c5 {[%clk 0:00:08.3]} 30... Bc7
{[%clk 0:00:22.7]} 31. Bxc7 {[%clk 0:00:07.5]} 31... Kxc7 {[%clk 0:00:23.2]} 32.
Rd3 {[%clk 0:00:07.2]} 32... Re5 {[%clk 0:00:20.1]} 33. h4 {[%clk 0:00:07.4]}
33... b6 {[%clk 0:00:20.3]} 34. cxb6+ {[%clk 0:00:06.6]} 34... axb6 {[%clk
0:00:20.1]} 35. Rd4 {[%clk 0:00:05.1]} 35... c5 {[%clk 0:00:18.3]} 36. bxc5
{[%clk 0:00:05.4]} 36... bxc5 {[%clk 0:00:19]} 37. Ra4 {[%clk 0:00:05.8]} 37...
Kb7 {[%clk 0:00:17.5]} 38. Kd3 {[%clk 0:00:06.2]} 38... Rd5+ {[%clk 0:00:14.4]}
39. Ke4 {[%clk 0:00:05.8]} 39... Rd1 {[%clk 0:00:14.2]} 40. Ke5 {[%clk
0:00:06.1]} 40... Kc6 {[%clk 0:00:09.4]} 41. Ra6+ {[%clk 0:00:06.2]} 41... Kb7
{[%clk 0:00:09.4]} 42. Ra5 {[%clk 0:00:06.2]} 42... Kb6 {[%clk 0:00:08.9]} 43.
Ra4 {[%clk 0:00:05.9]} 43... Kc6 {[%clk 0:00:08.5]} 44. Ra6+ {[%clk 0:00:05.8]}
44... Kb7 {[%clk 0:00:08.5]} 45. Ra5 {[%clk 0:00:05.5]} 45... Kc6 {[%clk
0:00:08.5]} 46. Ra6+ {[%clk 0:00:05.6]} 1/2-1/2

[Event "*** SCC Grand Prix: Titled Tuesday Blitz"]
[Site "Chess.com"]
[Date "2020.06.09"]
[Round "2"]
[White "Chuchofrio1"]
[Black "MasterKroket"]
[Result "1-0"]
[WhiteElo "2212"]
[BlackElo "2425"]
[TimeControl "180+1"]
[EndTime "9:19:09 PDT"]
[Termination "Chuchofrio1 won on time"]

1. d4 {[%clk 0:03:00.9]} 1... Nf6 {[%clk 0:02:59.8]} 2. c4 {[%clk 0:03:00.8]}
2... e6 {[%clk 0:03:00.2]} 3. Nc3 {[%clk 0:03:00.1]} 3... Bb4 {[%clk 0:03:00.7]}
4. e3 {[%clk 0:03:00.1]} 4... O-O {[%clk 0:03:00.8]} 5. Ne2 {[%clk 0:03:00]}
5... d5 {[%clk 0:02:59.9]} 6. a3 {[%clk 0:03:00]} 6... Bxc3+ {[%clk 0:02:58.9]}
7. Nxc3 {[%clk 0:02:59.6]} 7... c5 {[%clk 0:02:56.1]} 8. dxc5 {[%clk 0:02:54.5]}
8... a5 {[%clk 0:02:49.2]} 9. cxd5 {[%clk 0:02:45.4]} 9... exd5 {[%clk
0:02:47.4]} 10. Be2 {[%clk 0:02:42.9]} 10... Be6 {[%clk 0:02:37]} 11. O-O {[%clk
0:02:37.2]} 11... Qc7 {[%clk 0:02:32.7]} 12. Bf3 {[%clk 0:02:31.5]} 12... Rd8
{[%clk 0:02:29.3]} 13. Ne2 {[%clk 0:02:31]} 13... Qxc5 {[%clk 0:02:21]} 14. Bd2
{[%clk 0:02:29.7]} 14... Nc6 {[%clk 0:02:18.9]} 15. Rc1 {[%clk 0:02:29.2]} 15...
Qb6 {[%clk 0:02:18.1]} 16. Bc3 {[%clk 0:02:28.8]} 16... Ne4 {[%clk 0:02:12.5]}
17. Bd4 {[%clk 0:02:22.9]} 17... Qb5 {[%clk 0:01:55.9]} 18. Nc3 {[%clk
0:02:12.7]} 18... Nxc3 {[%clk 0:01:30.2]} 19. Bxc3 {[%clk 0:02:13.6]} 19... Bf5
{[%clk 0:01:25.7]} 20. Be2 {[%clk 0:01:58.3]} 20... Qb6 {[%clk 0:01:23.8]} 21.
Bd3 {[%clk 0:01:52.8]} 21... Be4 {[%clk 0:01:19.6]} 22. Qe2 {[%clk 0:01:48.4]}
22... Rac8 {[%clk 0:01:13.8]} 23. Rfd1 {[%clk 0:01:48.3]} 23... a4 {[%clk
0:01:07.2]} 24. Qg4 {[%clk 0:01:46.2]} 24... Bg6 {[%clk 0:00:47]} 25. h4 {[%clk
0:01:41.1]} 25... h5 {[%clk 0:00:35.4]} 26. Qg3 {[%clk 0:01:41.1]} 26... Ne7
{[%clk 0:00:30]} 27. Qe5 {[%clk 0:01:38.8]} 27... d4 {[%clk 0:00:18.5]} 28. Bxd4
{[%clk 0:01:34.9]} 28... Rxd4 {[%clk 0:00:18.6]} 29. Rxc8+ {[%clk 0:01:32.3]}
29... Nxc8 {[%clk 0:00:18.7]} 30. exd4 {[%clk 0:01:31.6]} 30... Nd6 {[%clk
0:00:17.2]} 31. Bxg6 {[%clk 0:01:29.4]} 31... fxg6 {[%clk 0:00:18.1]} 32. Qe6+
{[%clk 0:01:22.2]} 32... Kh7 {[%clk 0:00:18]} 33. d5 {[%clk 0:01:18.9]} 33...
Qc5 {[%clk 0:00:17.6]} 34. Qe5 {[%clk 0:01:14.6]} 34... b5 {[%clk 0:00:16.4]}
35. Re1 {[%clk 0:01:10.3]} 35... b4 {[%clk 0:00:10.7]} 36. axb4 {[%clk
0:01:08.5]} 36... Qxb4 {[%clk 0:00:11.6]} 37. Re3 {[%clk 0:01:07.4]} 37... Nf5
{[%clk 0:00:10.2]} 38. Re4 {[%clk 0:00:58.5]} 38... Qd2 {[%clk 0:00:10.1]} 39.
Re2 {[%clk 0:00:37.7]} 39... Qd1+ {[%clk 0:00:10.1]} 40. Kh2 {[%clk 0:00:37.1]}
40... Qd3 {[%clk 0:00:09.6]} 41. g3 {[%clk 0:00:36.2]} 41... a3 {[%clk
0:00:05.7]} 42. bxa3 {[%clk 0:00:35.5]} 42... Qxa3 {[%clk 0:00:06.6]} 43. Rd2
{[%clk 0:00:32.9]} 43... Qb4 {[%clk 0:00:06.5]} 44. Qe2 {[%clk 0:00:28.3]} 44...
Qd6 {[%clk 0:00:06.2]} 45. Qe6 {[%clk 0:00:27.1]} 45... Qb4 {[%clk 0:00:05.6]}
46. Re2 {[%clk 0:00:26.9]} 46... Qd4 {[%clk 0:00:04.4]} 47. Qe4 {[%clk
0:00:25.5]} 47... Qd1 {[%clk 0:00:04.6]} 48. Qf3 {[%clk 0:00:18.7]} 48... Qd4
{[%clk 0:00:04.2]} 49. Re4 {[%clk 0:00:18.3]} 49... Qd2 {[%clk 0:00:04.2]} 50.
Qe2 {[%clk 0:00:18]} 50... Qb4 {[%clk 0:00:02.9]} 51. Re5 {[%clk 0:00:17.3]}
51... Qd4 {[%clk 0:00:02.4]} 52. Qe4 {[%clk 0:00:15.3]} 52... Qxf2+ {[%clk
0:00:02.3]} 53. Qg2 {[%clk 0:00:15.5]} 53... Qd4 {[%clk 0:00:01.2]} 54. Qe2
{[%clk 0:00:11]} 1-0

[Event "*** SCC Grand Prix: Titled Tuesday Blitz"]
[Site "Chess.com"]
[Date "2020.06.09"]
[Round "2"]
[White "IljaJoke"]
[Black "carlesdc96"]
[Result "1/2-1/2"]
[WhiteElo "2489"]
[BlackElo "2726"]
[TimeControl "180+1"]
[EndTime "9:19:14 PDT"]
[Termination "Game drawn - insufficient material"]

1. d4 {[%clk 0:03:00.9]} 1... e6 {[%clk 0:03:00.2]} 2. c4 {[%clk 0:03:00.9]}
2... d5 {[%clk 0:02:58.8]} 3. Nf3 {[%clk 0:03:00.5]} 3... Nf6 {[%clk 0:02:58.6]}
4. g3 {[%clk 0:03:00.9]} 4... Be7 {[%clk 0:02:58.5]} 5. Bg2 {[%clk 0:03:01.3]}
5... O-O {[%clk 0:02:57.4]} 6. O-O {[%clk 0:03:01.9]} 6... dxc4 {[%clk
0:02:57.2]} 7. Qc2 {[%clk 0:03:02.5]} 7... c6 {[%clk 0:02:56.8]} 8. Qxc4 {[%clk
0:03:01.4]} 8... b5 {[%clk 0:02:56.8]} 9. Qb3 {[%clk 0:03:01.7]} 9... Bb7 {[%clk
0:02:54.4]} 10. Rd1 {[%clk 0:03:00.7]} 10... Nbd7 {[%clk 0:02:53.4]} 11. Bg5
{[%clk 0:03:00.7]} 11... Qb6 {[%clk 0:02:52.1]} 12. a4 {[%clk 0:02:56.6]} 12...
a6 {[%clk 0:02:51.3]} 13. Ne5 {[%clk 0:02:46]} 13... Rfd8 {[%clk 0:02:39.3]} 14.
Nxd7 {[%clk 0:02:39.9]} 14... Rxd7 {[%clk 0:02:38.8]} 15. Nc3 {[%clk 0:02:29.5]}
15... Rad8 {[%clk 0:02:30]} 16. Bxf6 {[%clk 0:02:22.5]} 16... Bxf6 {[%clk
0:02:28.1]} 17. e3 {[%clk 0:02:21.6]} 17... e5 {[%clk 0:01:47.7]} 18. Ne4 {[%clk
0:02:21]} 18... exd4 {[%clk 0:01:47.6]} 19. Nxf6+ {[%clk 0:02:16.9]} 19... gxf6
{[%clk 0:01:48.5]} 20. exd4 {[%clk 0:02:16.1]} 20... Rxd4 {[%clk 0:01:48.4]} 21.
Rxd4 {[%clk 0:01:52.1]} 21... Rxd4 {[%clk 0:01:47]} 22. a5 {[%clk 0:01:51.6]}
22... Qc7 {[%clk 0:01:42.6]} 23. Qf3 {[%clk 0:01:34.3]} 23... Qe5 {[%clk
0:01:33.7]} 24. h4 {[%clk 0:01:31.1]} 24... h5 {[%clk 0:01:19.6]} 25. Qc3 {[%clk
0:01:05.6]} 25... Rd7 {[%clk 0:01:07.4]} 26. Rc1 {[%clk 0:00:38.4]} 26... Kg7
{[%clk 0:00:42.7]} 27. b4 {[%clk 0:00:36.7]} 27... Rd1+ {[%clk 0:00:30.1]} 28.
Kh2 {[%clk 0:00:35.6]} 28... Rd6 {[%clk 0:00:14.7]} 29. Qf3 {[%clk 0:00:27.9]}
29... Qd5 {[%clk 0:00:09.2]} 30. Qf4 {[%clk 0:00:26.8]} 30... Qe5 {[%clk
0:00:09.4]} 31. Qf3 {[%clk 0:00:26.5]} 31... Qd5 {[%clk 0:00:08.6]} 32. Qc3
{[%clk 0:00:26.2]} 32... Qd4 {[%clk 0:00:07.9]} 33. Qxd4 {[%clk 0:00:15.7]}
33... Rxd4 {[%clk 0:00:08.8]} 34. Bxc6 {[%clk 0:00:16.1]} 34... Bxc6 {[%clk
0:00:08.9]} 35. Rxc6 {[%clk 0:00:16.4]} 35... Rxb4 {[%clk 0:00:09.7]} 36. Rxa6
{[%clk 0:00:17.1]} 36... Ra4 {[%clk 0:00:10.3]} 37. Kg2 {[%clk 0:00:16.3]} 37...
Kg6 {[%clk 0:00:10.6]} 38. Rb6 {[%clk 0:00:10.7]} 38... Rxa5 {[%clk 0:00:10.3]}
39. Kh2 {[%clk 0:00:10.4]} 39... Kf5 {[%clk 0:00:10.5]} 40. Kg2 {[%clk
0:00:10.6]} 40... Ke5 {[%clk 0:00:10.1]} 41. Kh3 {[%clk 0:00:07.4]} 41... Kd5
{[%clk 0:00:09]} 42. Rxf6 {[%clk 0:00:07]} 42... Kc4 {[%clk 0:00:09.3]} 43. Rf5
{[%clk 0:00:06]} 43... Ra2 {[%clk 0:00:07.9]} 44. Rxh5 {[%clk 0:00:05.8]} 44...
Rxf2 {[%clk 0:00:07.8]} 45. Rh8 {[%clk 0:00:05.9]} 45... b4 {[%clk 0:00:07.8]}
46. Rc8+ {[%clk 0:00:06.3]} 46... Kb3 {[%clk 0:00:07.7]} 47. Rb8 {[%clk
0:00:06.8]} 47... Kc3 {[%clk 0:00:07.6]} 48. h5 {[%clk 0:00:07.3]} 48... Rf1
{[%clk 0:00:07.1]} 49. Kg4 {[%clk 0:00:07.6]} 49... b3 {[%clk 0:00:06.6]} 50.
Kg5 {[%clk 0:00:08.1]} 50... Rh1 {[%clk 0:00:06.8]} 51. h6 {[%clk 0:00:08.2]}
51... b2 {[%clk 0:00:06.6]} 52. g4 {[%clk 0:00:08.4]} 52... b1=Q {[%clk
0:00:06.3]} 53. Rxb1 {[%clk 0:00:07.9]} 53... Rxb1 {[%clk 0:00:07.2]} 54. Kf6
{[%clk 0:00:08.4]} 54... Rb6+ {[%clk 0:00:06.6]} 55. Kxf7 {[%clk 0:00:08.6]}
55... Rxh6 {[%clk 0:00:06.5]} 56. g5 {[%clk 0:00:09.2]} 56... Rb6 {[%clk
0:00:07]} 57. g6 {[%clk 0:00:09.8]} 57... Kd4 {[%clk 0:00:07.5]} 58. g7 {[%clk
0:00:10]} 58... Rb7+ {[%clk 0:00:07.8]} 59. Kf8 {[%clk 0:00:10.4]} 59... Rxg7
{[%clk 0:00:08.7]} 60. Kxg7 {[%clk 0:00:10.4]} 1/2-1/2

[Event "*** SCC Grand Prix: Titled Tuesday Blitz"]
[Site "Chess.com"]
[Date "2020.06.09"]
[Round "2"]
[White "volcanoexplorer"]
[Black "1stSecond"]
[Result "0-1"]
[WhiteElo "2549"]
[BlackElo "2791"]
[TimeControl "180+1"]
[EndTime "9:19:15 PDT"]
[Termination "1stSecond won by checkmate"]

1. e4 {[%clk 0:03:00.9]} 1... c5 {[%clk 0:02:59.7]} 2. Nf3 {[%clk 0:03:00.9]}
2... Nc6 {[%clk 0:02:55.7]} 3. d4 {[%clk 0:03:00.3]} 3... cxd4 {[%clk
0:02:54.2]} 4. Nxd4 {[%clk 0:03:01.2]} 4... e6 {[%clk 0:02:53.7]} 5. Be2 {[%clk
0:02:59.7]} 5... Nf6 {[%clk 0:02:41.4]} 6. Nc3 {[%clk 0:02:57.2]} 6... Qc7
{[%clk 0:02:41.3]} 7. O-O {[%clk 0:02:56.3]} 7... a6 {[%clk 0:02:41.5]} 8. Be3
{[%clk 0:02:56.2]} 8... d6 {[%clk 0:02:37.4]} 9. f4 {[%clk 0:02:55.8]} 9... Be7
{[%clk 0:02:35.7]} 10. Kh1 {[%clk 0:02:56.3]} 10... Na5 {[%clk 0:02:28.3]} 11.
Qe1 {[%clk 0:02:00.5]} 11... Nc4 {[%clk 0:02:27.7]} 12. Bc1 {[%clk 0:02:00.4]}
12... b5 {[%clk 0:02:22.2]} 13. Qg3 {[%clk 0:01:50.5]} 13... b4 {[%clk
0:01:55.7]} 14. Na4 {[%clk 0:01:06.3]} 14... Nxe4 {[%clk 0:01:49.2]} 15. Qf3
{[%clk 0:00:40.7]} 15... Bb7 {[%clk 0:01:30.9]} 16. Qd3 {[%clk 0:00:12.1]} 16...
d5 {[%clk 0:01:16.6]} 17. b3 {[%clk 0:00:09.1]} 17... Ncd6 {[%clk 0:01:04.1]}
18. f5 {[%clk 0:00:08.2]} 18... e5 {[%clk 0:00:43]} 19. Nf3 {[%clk 0:00:08.2]}
19... f6 {[%clk 0:00:43.3]} 20. Bb2 {[%clk 0:00:07.9]} 20... O-O {[%clk
0:00:40.3]} 21. Nh4 {[%clk 0:00:08]} 21... d4 {[%clk 0:00:38.2]} 22. Rac1 {[%clk
0:00:02.7]} 22... Nc3 {[%clk 0:00:36.1]} 23. Bxc3 {[%clk 0:00:01.9]} 23... bxc3
{[%clk 0:00:35.1]} 24. Qh3 {[%clk 0:00:02.8]} 24... Qc6 {[%clk 0:00:20.3]} 25.
Bf3 {[%clk 0:00:02.8]} 25... e4 {[%clk 0:00:20.7]} 26. Bh5 {[%clk 0:00:03.2]}
26... Rfd8 {[%clk 0:00:16.9]} 27. Ng6 {[%clk 0:00:03.4]} 27... Bf8 {[%clk
0:00:16.9]} 28. Nf4 {[%clk 0:00:03.6]} 28... Bc8 {[%clk 0:00:15.7]} 29. Ne6
{[%clk 0:00:03.1]} 29... Bxe6 {[%clk 0:00:15.2]} 30. fxe6 {[%clk 0:00:04]} 30...
Ra7 {[%clk 0:00:15.6]} 31. Bg4 {[%clk 0:00:03.6]} 31... Re7 {[%clk 0:00:15.6]}
32. Rfe1 {[%clk 0:00:04]} 32... Qd5 {[%clk 0:00:15.3]} 33. Nb6 {[%clk
0:00:03.8]} 33... Qe5 {[%clk 0:00:14.2]} 34. Nc4 {[%clk 0:00:04.4]} 34... Nxc4
{[%clk 0:00:14]} 35. bxc4 {[%clk 0:00:05.3]} 35... g6 {[%clk 0:00:14.6]} 36.
Rcd1 {[%clk 0:00:03.6]} 36... f5 {[%clk 0:00:14.8]} 37. Be2 {[%clk 0:00:03.1]}
37... Rxe6 {[%clk 0:00:15.1]} 38. Bf1 {[%clk 0:00:03]} 38... Qf6 {[%clk
0:00:14.6]} 39. g3 {[%clk 0:00:02.1]} 39... Bc5 {[%clk 0:00:10.9]} 40. Qg2
{[%clk 0:00:02.2]} 40... Kg7 {[%clk 0:00:11.1]} 41. Be2 {[%clk 0:00:02.1]} 41...
Red6 {[%clk 0:00:11.3]} 42. Bf1 {[%clk 0:00:02.6]} 42... d3 {[%clk 0:00:11.5]}
43. g4 {[%clk 0:00:02.3]} 43... dxc2 {[%clk 0:00:10.7]} 44. Rc1 {[%clk
0:00:02.9]} 44... Rd2 {[%clk 0:00:10.3]} 45. Re2 {[%clk 0:00:03.6]} 45... Rxe2
{[%clk 0:00:08.3]} 46. Bxe2 {[%clk 0:00:04.5]} 46... Rd2 {[%clk 0:00:08.5]} 47.
gxf5 {[%clk 0:00:04.5]} 47... Qxf5 {[%clk 0:00:08.5]} 48. Qg3 {[%clk 0:00:02.2]}
48... Rxe2 {[%clk 0:00:07.1]} 49. Qc7+ {[%clk 0:00:02.1]} 49... Kh6 {[%clk
0:00:06.2]} 50. Qg3 {[%clk 0:00:02.9]} 50... Qf3+ {[%clk 0:00:06.3]} 51. Qxf3
{[%clk 0:00:03.6]} 51... exf3 {[%clk 0:00:07.2]} 52. a4 {[%clk 0:00:04.5]} 52...
Be3 {[%clk 0:00:07.5]} 53. a5 {[%clk 0:00:04.8]} 53... Bxc1 {[%clk 0:00:07.5]}
54. h4 {[%clk 0:00:05.7]} 54... Bf4 {[%clk 0:00:08]} 55. h5 {[%clk 0:00:06.6]}
55... c1=Q# {[%clk 0:00:08.5]} 0-1